bitfinex-derivatives/quotes_BNBF0:USTF0_20250305
["timestamp","ask_amount","ask_price","bid_price","bid_amount"]
[1741169201702,0.28983093,600.82,599.9,0.27942839]
[1741169201896,7.30611978,601.21,599.91,0.27942839]
[1741169202100,7.30611978,601.2,599.92,0.27942839]
[1741169202299,3.11383023,601.22,599.84,1.22818455]
[1741169202300,7.30611978,601.19,599.93,0.27942839]
[1741169202502,7.30611978,601.18,599.94,0.27942839]
[1741169202700,3.11383023,601.19,599.62,0.33354457]
[1741169202701,0.28983093,600.82,600.13,1.22818455]
[1741169202998,0.28983093,600.82,600.14,0.27942839]
[1741169203399,0.28983093,600.82,600.15,0.27940307]
[1741169203600,0.28983093,600.82,600.14,0.27940307]
[1741169204993,1.66427618,601.07,600.14,0.27940307]
[1741169205199,4.1426588,601.07,600.15,0.27940307]
[1741169205394,4.1426588,601.06,599.92,0.27940307]
[1741169205598,3.11383023,601.09,599.93,0.27940307]
[1741169205794,1.66342865,601.05,599.92,0.27940307]
[1741169206100,2.61666012,601.04,599.93,0.27940307]
[1741169206299,0.28984662,600.72,599.92,0.27940307]
[1741169206503,3.11383023,601.09,599.92,0.27940307]
[1741169206700,0.98931509,601.55,599.92,0.27940307]
[1741169206701,1.19762701,601.08,599.92,0.27940307]
[1741169207000,1.19762701,601.08,599.93,0.27940307]
[1741169207196,1.19762701,601.08,599.81,0.28984662]
[1741169207197,4.68534113,601.52,599.82,0.27940307]
[1741169207400,0.28981645,600.91,599.83,0.27940307]
[1741169207695,0.28981645,600.91,599.84,0.27940307]
[1741169207902,7.30108256,601.49,599.82,0.27940307]
[1741169208100,7.30108256,601.48,599.83,0.27940307]
[1741169208297,7.30108256,601.47,599.79,0.27940307]
[1741169208501,7.30108256,601.47,599.78,1.22818455]
[1741169208502,0.98931509,601.41,599.84,0.27940307]
[1741169208702,0.33256289,601.39,599.85,0.27940307]
[1741169208896,0.33256289,601.39,599.78,1.22818455]
[1741169208897,7.30108256,601.38,599.79,0.27940307]
[1741169209099,7.30108256,601.37,599.82,0.28971994]
[1741169209297,7.63366204,601.36,599.84,1.22818455]
[1741169209502,7.30108256,601.35,599.85,0.27940307]
[1741169209697,0.33259607,601.33,599.85,0.27940307]
[1741169209896,7.30108256,601.32,599.85,0.27940307]
[1741169210202,7.30108256,601.31,599.85,0.27940307]
[1741169210397,7.30108256,601.3,599.85,0.27940307]
[1741169210600,7.30108256,601.29,599.85,0.27940307]
[1741169210802,7.30108256,601.28,599.85,0.27940307]
[1741169211005,7.63371182,601.27,599.85,0.27940307]
[1741169211199,7.30108256,601.26,599.85,0.27940307]
[1741169211402,7.30108256,601.25,599.85,0.27940307]
[1741169211599,4.63986065,601.24,599.85,0.27940307]
[1741169211801,7.29832399,601.23,600.06,1.22818455]
[1741169212001,0.33266246,601.21,600.07,0.27940307]
[1741169212201,6.7990842,601.2,600.07,0.27940307]
[1741169212404,7.29832399,601.19,600.07,0.27940307]
[1741169212705,7.29832399,601.18,600.07,0.27940307]
[1741169212906,7.63100858,601.17,600.07,0.27940307]
[1741169213106,7.29832399,601.16,600.07,0.27940307]
[1741169213407,7.63097913,601.15,600.07,0.27940307]
[1741169213603,7.1317854,601.14,600.07,0.27940307]
[1741169213800,7.13179093,601.13,600.07,0.27940307]
[1741169214012,7.6310226,601.12,600.08,0.27932885]
[1741169214208,7.131802,601.11,600.3,1.22818455]
[1741169214412,7.13180754,601.1,600.31,0.27932885]
[1741169214713,7.13181307,601.09,600.31,0.27932885]
[1741169214909,7.13181861,601.08,600.31,0.27932885]
[1741169215112,7.13182414,601.07,600.31,0.27932885]
[1741169215311,4.47119085,601.06,600.31,0.27932885]
[1741169215512,7.58502661,601.05,600.31,0.27932885]
[1741169215811,2.9476578,601.04,600.32,0.27933033]
[1741169216008,2.94766334,601.03,600.33,0.27933033]
[1741169216210,2.61490125,601.02,600.31,0.27933033]
[1741169216409,2.61490125,601.01,600.32,0.27933033]
[1741169216611,6.79699636,601.0,600.14,0.27933033]
[1741169216807,6.79699636,600.99,600.15,0.27933033]
[1741169217008,6.79699636,600.99,600.13,1.22818455]
[1741169217009,6.79699636,600.98,600.16,0.27933033]
[1741169217213,6.79699636,600.97,600.17,0.27933033]
[1741169217413,6.79699636,600.96,600.18,0.27933033]
[1741169217714,9.91082659,600.95,600.19,0.27933033]
[1741169218014,7.25215844,600.94,600.2,0.27933033]
[1741169218213,2.61490125,600.93,600.21,0.27933033]
[1741169218413,3.81252826,600.92,600.21,0.27933033]
[1741169218614,2.61490125,600.91,600.22,0.27933033]
[1741169218915,3.81252826,600.9,600.23,0.27933033]
[1741169219111,3.81252826,600.9,600.12,1.22818455]
[1741169219112,2.61490125,600.89,600.13,0.27933033]
[1741169219312,2.61490125,600.88,600.24,0.27933033]
[1741169219509,3.81252826,600.87,600.25,0.27933033]
[1741169219711,0.95283655,600.86,600.13,0.27933033]
[1741169219915,2.61282119,600.85,600.14,0.27933033]
[1741169220114,1.19762701,600.84,600.13,0.27933033]
[1741169220310,2.61284272,600.83,600.13,0.27933033]
[1741169220511,1.19762701,600.84,600.13,0.27933033]
[1741169220715,1.19762701,600.83,600.13,0.27933033]
[1741169221516,1.19762701,600.82,600.13,0.27933033]
[1741169221909,1.19762701,600.81,600.14,0.27933033]
[1741169222217,1.19762701,600.81,600.15,0.27933033]
[1741169222418,1.19762701,600.81,600.07,0.27933033]
[1741169222712,0.2897525,600.92,600.08,0.27933033]
[1741169222920,7.24648098,600.91,600.07,0.27933033]
[1741169223115,4.13761215,600.9,600.08,0.27933033]
[1741169223310,2.61404918,600.89,600.07,0.27933033]
[1741169223510,2.61404918,600.88,600.08,0.27933033]
[1741169223716,3.39861597,600.91,600.07,0.27933033]
[1741169223915,1.1957144,600.88,600.08,0.27933033]
[1741169224109,1.1957144,600.88,600.07,0.27933033]
[1741169224314,0.28975853,600.91,599.99,0.27933033]
[1741169224618,0.33283408,600.9,600.0,0.27933033]
[1741169224818,0.33283408,600.9,599.99,0.27933033]
[1741169225015,0.33283408,600.9,600.0,0.27933033]
[1741169225212,0.33283408,600.9,599.99,0.27933033]
[1741169225410,0.33283408,600.9,600.0,0.27933033]
[1741169225614,0.33283408,600.9,600.01,0.27933033]
[1741169225816,0.33283408,600.9,600.02,0.27933033]
[1741169226013,0.33283408,600.9,600.03,0.27933033]
[1741169226218,0.33283408,600.9,600.04,0.27933033]
[1741169226425,0.33283408,600.9,599.99,0.27933033]
[1741169226712,0.33283408,600.9,599.98,0.28975853]
[1741169226713,0.33283408,600.9,600.0,0.27933033]
[1741169226910,0.33283408,600.9,600.01,0.27933033]
[1741169227112,0.33283408,600.9,600.02,0.27933033]
[1741169227314,0.33283408,600.9,600.03,0.27933033]
[1741169227515,0.33283408,600.9,600.04,0.27933033]
[1741169227713,0.33283408,600.9,600.05,0.27933033]
[1741169227918,0.33283408,600.9,600.06,0.27933033]
[1741169228216,0.33283408,600.9,600.07,0.27933033]
[1741169228417,0.33283408,600.9,600.08,0.27933033]
[1741169228719,0.33283408,600.9,600.25,1.22818455]
[1741169228913,0.33283408,600.9,600.26,0.27933033]
[1741169229617,0.33283408,600.9,600.25,1.22818455]
[1741169230011,0.33283408,600.9,600.26,0.27932112]
[1741169230216,0.33283408,600.9,600.27,1.22818455]
[1741169230414,0.33283408,600.9,600.28,0.27932186]
[1741169232620,0.33283408,600.9,600.44,1.22818455]
[1741169232819,0.33283408,600.9,600.45,0.27932186]
[1741169234723,0.33283408,600.9,600.45,1.50750641]
[1741169234918,0.33283408,600.9,600.46,0.27932186]
[1741169235716,0.33283408,600.9,600.45,1.22818455]
[1741169235917,0.33283408,600.9,600.46,0.27928473]
[1741169236816,0.33283408,600.9,600.47,0.27928473]
[1741169237024,0.33283408,600.9,600.43,0.27928473]
[1741169237323,0.33283408,600.9,600.44,0.27928473]
[1741169237519,0.33283408,600.9,600.43,0.27928473]
[1741169239119,0.33283408,600.9,600.44,0.27928473]
[1741169239325,0.33283408,600.9,600.35,0.27928473]
[1741169239626,0.33283408,600.9,600.36,0.27927787]
[1741169239827,0.33283408,600.9,600.37,0.27927787]
[1741169240021,4.68732686,601.22,600.38,0.27927787]
[1741169240225,2.61739637,601.21,600.39,0.27927787]
[1741169240422,0.28963675,601.17,600.4,0.27927787]
[1741169240622,0.95421579,601.16,600.47,1.22818455]
[1741169240923,0.49901111,601.36,600.48,0.27927787]
[1741169241122,7.63748276,601.35,600.47,1.22818455]
[1741169241323,10.75253615,601.34,600.48,0.27922416]
[1741169241519,7.63749382,601.33,600.48,0.27922416]
[1741169241724,7.30502521,601.32,600.48,0.27922416]
[1741169242028,7.63763235,601.31,600.56,1.22818455]
[1741169242326,10.75268574,601.3,600.57,0.27922416]
[1741169242526,10.75269127,601.29,600.57,0.27922416]
[1741169242727,6.8060141,601.28,600.57,0.27922416]
[1741169243027,9.92106196,601.27,600.57,0.27922416]
[1741169243227,6.8060141,601.26,600.57,0.27922416]
[1741169243428,2.61769773,601.25,600.57,0.27922416]
[1741169243626,2.61769773,601.24,600.57,0.27922416]
[1741169243825,2.61769773,601.23,600.57,0.27922416]
[1741169244023,2.61769773,601.22,600.57,0.27922416]
[1741169244224,2.61769773,601.21,600.57,0.27922416]
[1741169244425,2.15231414,601.2,600.57,0.27922416]
[1741169244627,1.19809533,601.2,600.38,0.27922416]
[1741169244829,1.19809533,601.19,600.38,0.27922416]
[1741169245029,0.3326182,601.29,600.38,0.27922416]
[1741169245231,6.8039705,601.28,600.38,0.27922416]
[1741169245431,0.28961264,601.18,600.38,0.27922416]
[1741169245730,1.91549408,601.26,600.38,0.27922416]
[1741169245928,2.61693561,601.25,600.38,0.27922416]
[1741169246224,7.30325721,601.24,600.38,0.27922416]
[1741169246425,6.80425541,601.23,600.38,0.27922416]
[1741169246725,6.80425541,601.22,600.38,0.27922416]
[1741169246925,6.80425541,601.21,600.38,0.27922416]
[1741169247124,6.80425541,601.2,600.38,0.27922416]
[1741169247324,6.80425541,601.19,600.21,0.27922416]
[1741169247526,4.14291247,601.18,600.22,0.27922416]
[1741169247727,2.61655242,601.17,600.23,0.27922416]
[1741169247926,2.61655242,601.16,600.24,0.27922416]
[1741169248127,2.61655242,601.15,600.21,0.27922416]
[1741169248330,3.81385416,601.14,600.24,0.28963554]
[1741169248530,2.61655242,601.13,600.25,0.27922416]
[1741169248725,3.81385416,601.12,600.25,0.27922416]
[1741169248929,1.19730174,601.12,600.25,0.27922416]
[1741169249124,2.61674958,601.11,600.25,0.27922416]
[1741169249324,1.19730174,601.12,600.25,0.27922416]
[1741169249631,0.95324832,601.11,600.25,0.27922416]
[1741169249830,1.19730174,601.11,600.25,0.27922416]
[1741169250229,1.19730174,601.11,600.26,0.27922416]
[1741169250531,1.19730174,601.1,600.27,0.27922416]
[1741169250731,1.19730174,601.1,600.14,0.27922416]
[1741169250929,1.19730174,601.09,600.15,0.27922416]
[1741169251128,1.19730174,601.09,600.16,0.27922416]
[1741169251328,0.28965965,601.14,600.17,0.27922416]
[1741169251531,2.6132324,601.13,600.18,0.27922416]
[1741169251727,2.61315795,601.12,600.19,0.27922416]
[1741169251928,2.14695875,601.11,600.2,0.27922416]
[1741169252127,2.6130534,601.1,600.21,0.27922416]
[1741169252332,1.19515466,601.11,600.22,0.27922416]
[1741169252532,3.80832334,601.1,600.23,0.27922416]
[1741169252733,3.80832334,601.1,600.17,1.22818455]
[1741169252734,1.19515466,601.1,600.24,0.27922416]
[1741169252933,1.19515466,601.1,600.25,0.27922416]
[1741169253129,1.19515466,601.09,600.26,0.27922416]
[1741169253332,1.19515466,601.09,600.29,1.22818455]
[1741169253531,0.49902328,601.25,600.3,0.27922416]
[1741169253730,7.29201892,601.24,600.31,0.27922416]
[1741169253937,6.79299564,601.23,600.32,0.27922416]
[1741169254131,2.61269063,601.22,600.33,0.27922416]
[1741169254339,2.61269063,601.21,600.34,0.27922416]
[1741169254533,2.61269063,601.2,600.3,0.27922416]
[1741169254735,3.39659076,601.23,600.31,0.27922416]
[1741169254930,3.39659076,601.23,600.29,1.22818455]
[1741169254931,1.19498741,601.19,600.32,0.27922416]
[1741169255128,1.19498741,601.19,600.21,0.28962349]
[1741169255129,1.19498741,601.19,600.33,0.27922416]
[1741169255336,1.19498741,601.19,600.34,0.27922416]
[1741169255537,0.28962349,601.23,600.35,0.27922416]
[1741169255736,0.28962349,601.23,600.36,0.27922416]
[1741169255934,0.3326182,601.29,600.37,0.27922416]
[1741169256139,0.3326182,601.29,600.38,0.27922416]
[1741169256341,0.3326182,601.29,600.39,0.27922416]
[1741169256534,0.3326182,601.29,600.4,0.27922416]
[1741169256839,0.3326182,601.29,600.41,0.27922416]
[1741169257041,0.3326182,601.29,600.42,0.27922416]
[1741169257237,0.3326182,601.29,600.28,1.22818455]
[1741169257238,0.3326182,601.29,600.43,0.27922416]
[1741169257442,0.3326182,601.29,600.5,1.22818455]
[1741169257641,0.3326182,601.29,600.51,0.27922416]
[1741169257842,0.3326182,601.29,600.52,0.27922416]
[1741169258035,0.3326182,601.29,600.53,0.27922416]
[1741169258237,0.3326182,601.29,600.54,0.27922416]
[1741169258438,0.3326182,601.29,600.55,0.27922416]
[1741169258636,0.3326182,601.29,600.21,0.28962349]
[1741169258637,0.3326182,601.29,600.56,0.27922416]
[1741169258841,0.3326182,601.29,600.36,0.27922416]
[1741169259034,0.3326182,601.29,600.37,0.27922416]
[1741169259236,0.3326182,601.29,600.35,1.22818455]
[1741169259237,2.6081597,601.28,600.38,0.27922416]
[1741169259435,2.6081597,601.27,600.39,0.27922416]
[1741169259643,2.6081597,601.26,600.4,0.27922416]
[1741169259839,3.80095746,601.25,600.41,0.27922416]
[1741169260040,2.60799868,601.24,600.36,0.27922416]
[1741169260342,2.14281909,601.23,600.37,0.27922416]
[1741169260543,1.19279776,601.23,600.36,0.27922416]
[1741169260736,1.19279776,601.23,600.28,0.2896018]
[1741169260937,1.19279776,601.23,600.29,0.27917794]
[1741169261339,1.19279776,601.22,600.29,0.27917794]
[1741169261543,0.2896018,601.25,600.29,0.27917794]
[1741169262045,0.3326182,601.29,600.29,0.27917794]
[1741169262344,0.3326182,601.29,600.3,0.27917794]
[1741169262546,0.3326182,601.29,599.63,0.27917794]
[1741169262739,0.3326182,601.29,599.65,0.33352789]
[1741169262942,1.19267278,601.28,599.66,0.27917794]
[1741169263140,1.48231555,601.28,600.23,1.22818455]
[1741169263347,1.48231555,601.28,600.24,0.27917794]
[1741169263646,1.19267278,601.27,600.24,0.27917794]
[1741169264150,0.28964277,601.28,600.24,0.27917794]
[1741169264745,0.28964277,601.28,600.25,0.27917794]
[1741169264940,0.28964277,601.28,600.26,0.27917794]
[1741169265141,2.93712215,601.27,600.27,0.27917794]
[1741169265346,2.93712769,601.26,600.24,0.27917794]
[1741169265547,2.93713322,601.25,600.43,1.22818455]
[1741169265843,2.93713875,601.24,600.43,1.22818455]
[1741169266047,4.12860752,601.23,600.43,1.22818455]
[1741169266244,0.33265693,601.22,600.43,1.22818455]
[1741169266848,0.94824498,601.21,600.43,1.22818455]
[1741169267149,0.33266799,601.2,600.43,1.22818455]
[1741169267644,0.33266799,601.2,599.95,1.22818455]
[1741169267846,2.6029459,601.19,599.96,0.27927116]
[1741169268045,1.98747048,601.18,599.96,0.27927116]
[1741169268246,1.98747601,601.17,599.96,0.27927116]
[1741169268445,0.33269013,601.16,599.96,0.27927116]
[1741169268645,0.94814504,601.15,599.96,0.27927116]
[1741169268843,2.93563128,601.14,599.96,0.27927116]
[1741169269041,2.93563681,601.13,599.96,0.27927116]
[1741169269249,2.60293008,601.12,599.96,0.27927116]
[1741169269443,2.60293008,601.11,599.96,0.27927116]
[1741169269651,0.94814504,601.1,599.95,1.22818455]
[1741169269845,2.93518568,601.09,600.11,1.22818455]
[1741169270044,2.60245681,601.08,600.12,0.27927227]
[1741169270247,1.28071869,601.07,600.12,0.27927227]
[1741169270549,0.33273994,601.07,600.12,0.27927227]
[1741169271250,0.28968376,601.06,600.12,0.27927227]
[1741169272053,0.28968376,601.06,600.1,0.27927227]
[1741169272251,0.28968376,601.06,600.11,0.27927227]
[1741169272451,0.28968376,601.06,600.1,0.27927227]
[1741169272646,0.28968376,601.06,600.11,0.27927227]
[1741169272845,0.28968376,601.06,600.12,0.27927227]
[1741169273049,0.28968376,601.06,600.13,0.27927227]
[1741169273551,0.28968376,601.06,600.14,0.27927227]
[1741169273753,0.28968376,601.06,600.1,1.50745682]
[1741169273954,0.33273994,601.07,600.11,0.27927227]
[1741169274348,0.289691,601.05,600.11,0.27927227]
[1741169275352,0.289691,601.05,600.09,0.27927227]
[1741169275552,0.289691,601.05,600.1,0.27927227]
[1741169275853,0.289691,601.05,600.11,0.27927227]
[1741169276058,0.289691,601.05,600.09,0.27927227]
[1741169276250,0.289691,601.05,600.1,0.27927227]
[1741169276448,0.289691,601.05,600.11,0.27927227]
[1741169276750,0.289691,601.05,600.12,0.27927227]
[1741169276948,0.33273994,601.07,600.09,0.27927227]
[1741169277251,0.28970064,601.04,600.09,0.27927227]
[1741169277453,0.28970064,601.04,600.1,0.27927227]
[1741169277655,0.28970064,601.04,600.08,0.27927227]
[1741169277849,0.28970064,601.04,600.09,0.27927227]
[1741169278050,0.28970064,601.04,600.08,0.27927227]
[1741169278255,0.28970064,601.04,600.09,0.27927227]
[1741169278453,0.33276209,601.03,600.08,0.27927227]
[1741169278655,0.33276209,601.03,600.09,0.27927227]
[1741169278852,0.33276209,601.03,600.08,0.27927227]
[1741169279053,0.94844546,601.02,600.09,0.27927227]
[1741169279257,1.28121862,601.01,600.08,0.27927227]
[1741169279456,0.3327787,601.0,600.1,0.27927227]
[1741169279660,0.94844546,600.99,600.11,0.27927227]
[1741169279961,4.12694752,600.98,600.12,0.27927227]
[1741169280161,1.28124077,600.97,599.92,0.27927227]
[1741169280358,2.93581502,600.97,599.91,1.22818455]
[1741169280562,2.13938451,600.96,599.92,0.27939932]
[1741169280762,2.13938451,600.96,599.93,0.27939932]
[1741169280958,1.19093905,600.96,599.94,0.27939932]
[1741169281161,0.33280638,600.95,599.95,0.27939932]
[1741169281463,0.33280638,600.95,599.96,0.27939932]
[1741169281763,0.33280638,600.95,599.97,0.27939932]
[1741169281962,0.33280638,600.95,599.98,0.27939932]
[1741169282163,0.33280638,600.95,599.9,0.28980559]
[1741169282363,0.33280638,600.95,599.91,0.27939773]
[1741169282560,0.33280638,600.95,599.92,0.27939773]
[1741169282864,0.33280638,600.95,600.06,1.22818455]
[1741169283055,0.33280638,600.95,600.07,0.27939773]
[1741169283257,0.28978628,600.94,600.07,0.27939773]
[1741169283460,0.33281746,600.93,600.07,0.27939773]
[1741169283862,2.60249936,600.92,600.07,0.27939773]
[1741169284162,2.9353279,600.91,600.08,0.27938787]
[1741169284364,3.79343841,600.9,600.03,0.27938787]
[1741169284565,2.60249936,600.89,600.04,0.27938787]
[1741169284864,1.52378421,600.88,600.05,0.27938787]
[1741169285056,0.33285069,600.87,600.03,0.27938787]
[1741169286361,0.33285069,600.87,600.04,0.27938787]
[1741169286567,0.33285069,600.87,600.05,0.27938787]
[1741169286770,0.33285069,600.87,599.69,0.27938787]
[1741169286964,0.33285069,600.87,600.06,0.27938787]
[1741169287169,0.33285069,600.87,600.07,0.27938787]
[1741169287366,0.33285069,600.87,599.97,0.27938787]
[1741169287567,0.33285069,600.87,599.98,0.27934341]
[1741169287769,0.33285069,600.87,599.99,0.27934341]
[1741169287970,0.33285069,600.87,600.19,1.22818455]
[1741169288169,0.33285069,600.87,600.2,0.27934341]
[1741169288371,0.33285069,600.87,600.21,0.27934341]
[1741169288570,0.33285069,600.87,600.22,0.27934341]
[1741169288771,0.33285069,600.87,600.23,0.27934341]
[1741169289073,0.33285069,600.87,600.2,0.27934341]
[1741169289272,0.33285069,600.87,600.21,0.27934341]
[1741169289572,0.33285069,600.87,600.22,0.27934341]
[1741169289766,0.33285069,600.87,600.23,0.27934341]
[1741169289965,0.33285069,600.87,600.19,1.22818455]
[1741169290472,0.33285069,600.87,600.24,0.27936043]
[1741169290671,0.33285069,600.87,600.25,0.27936043]
[1741169290872,0.33285069,600.87,600.26,0.27936043]
[1741169291074,0.33285069,600.87,600.27,0.27936043]
[1741169291268,0.33285069,600.87,600.2,0.27936043]
[1741169291470,0.33285069,600.87,600.21,0.27936043]
[1741169291772,0.33285069,600.87,600.22,0.27936043]
[1741169292080,0.33285069,600.87,600.23,0.27936043]
[1741169292273,0.33285069,600.87,600.2,0.27936043]
[1741169292568,0.33285069,600.87,600.21,0.27936043]
[1741169292772,0.33285069,600.87,600.22,0.27936043]
[1741169292972,0.33285069,600.87,600.05,0.27936043]
[1741169293172,0.28972959,600.86,600.06,0.27936043]
[1741169293378,0.28972959,600.86,600.07,0.27936043]
[1741169293573,0.28972959,600.86,600.08,0.27936043]
[1741169293772,0.28972959,600.86,600.09,0.27936043]
[1741169293973,0.28972959,600.86,600.1,0.27936043]
[1741169294273,0.28972959,600.86,600.11,0.27936043]
[1741169294475,0.28972959,600.86,600.12,0.27936043]
[1741169294673,0.28972959,600.86,600.07,0.27936043]
[1741169294972,0.28972959,600.86,600.08,0.27936043]
[1741169295175,0.28972959,600.86,600.07,0.27936043]
[1741169295475,0.28972959,600.86,600.08,0.27936043]
[1741169295676,0.28972959,600.86,600.09,0.27936043]
[1741169295975,0.28972959,600.86,600.0,0.28972959]
[1741169295976,0.28972959,600.86,600.1,0.27936043]
[1741169296169,0.28972959,600.86,600.11,0.27936043]
[1741169296371,0.28972959,600.86,600.12,0.27936043]
[1741169296575,0.28972959,600.86,600.13,0.27936043]
[1741169296775,0.28972959,600.86,600.14,0.27936043]
[1741169296970,0.28972959,600.86,600.15,0.27936043]
[1741169297170,0.28972959,600.86,600.16,0.27936043]
[1741169297375,0.28972959,600.86,600.01,0.27936043]
[1741169297677,0.28972959,600.86,600.02,0.27936043]
[1741169297879,0.33285069,600.87,600.03,0.27936043]
[1741169298079,0.33285069,600.87,600.04,0.2793614]
[1741169298278,0.33285069,600.87,600.05,0.2793614]
[1741169298578,0.33285069,600.87,600.06,0.2793614]
[1741169298787,0.33285069,600.87,600.07,0.27935112]
[1741169299078,0.33285069,600.87,600.08,0.27935112]
[1741169299279,0.28974768,600.86,600.02,0.27935112]
[1741169299476,0.28974768,600.86,600.03,0.27935112]
[1741169299677,0.28974768,600.86,600.04,0.27935112]
[1741169299976,0.28974768,600.86,600.05,0.27935112]
[1741169300173,0.28974768,600.86,600.02,0.27935112]
[1741169300374,0.28974768,600.86,600.01,0.2897887]
[1741169300375,0.28974768,600.86,600.03,0.27935112]
[1741169300574,0.28974768,600.86,600.04,0.27935308]
[1741169300775,0.28974768,600.86,600.02,0.27935308]
[1741169300976,0.28974768,600.86,600.01,0.2897887]
[1741169300977,0.28974768,600.86,600.03,0.27935308]
[1741169301380,0.28974768,600.86,600.04,0.27935308]
[1741169301576,0.28974768,600.86,600.01,0.2897887]
[1741169301577,0.28974768,600.86,600.05,0.27935308]
[1741169301779,0.28974768,600.86,600.06,0.27935308]
[1741169301980,0.28974768,600.86,600.02,0.27935308]
[1741169302177,0.28974768,600.86,600.3,1.22818455]
[1741169302374,0.28974768,600.86,600.31,0.27935938]
[1741169304081,0.28974768,600.86,600.32,0.27936151]
[1741169304284,0.28974768,600.86,600.33,0.27936151]
[1741169304582,0.28974768,600.86,600.34,0.27936151]
[1741169304779,0.28974768,600.86,600.28,0.27936151]
[1741169305083,0.28974768,600.86,600.29,0.27936151]
[1741169305283,0.28974768,600.86,600.3,0.27936151]
[1741169305483,0.28974768,600.86,600.31,1.22818455]
[1741169305679,0.28974768,600.86,600.32,0.27936151]
[1741169305988,0.28974768,600.86,600.32,0.27936015]
[1741169306989,0.33285069,600.87,600.32,0.27936015]
[1741169307485,0.28973562,600.85,600.32,0.27936015]
[1741169307678,0.28973562,600.85,600.23,0.27936015]
[1741169307879,0.28973562,600.85,600.24,0.27936015]
[1741169308084,0.28973562,600.85,600.23,0.27936015]
[1741169308278,0.28973562,600.85,600.24,0.27936015]
[1741169308484,0.28973562,600.85,600.23,0.27936015]
[1741169308691,0.28973562,600.85,600.24,0.27936015]
[1741169308986,0.28973562,600.85,600.25,0.27936015]
[1741169309285,0.28973562,600.85,600.26,0.27935944]
[1741169309486,0.28973562,600.85,600.23,0.27935944]
[1741169309786,0.28973562,600.85,600.24,0.27935944]
[1741169309982,0.33285069,600.87,600.11,0.27935944]
[1741169310287,0.33285069,600.87,600.1,1.22818455]
[1741169310288,2.6035052,600.86,600.12,0.27935944]
[1741169310479,2.60357665,600.85,600.13,0.27935944]
[1741169310683,2.60357665,600.84,600.14,0.27935944]
[1741169310887,1.19093495,600.85,600.15,0.27935944]
[1741169311085,2.60364131,600.84,600.15,0.27935944]
[1741169311285,0.28979111,600.83,600.16,0.27935944]
[1741169311479,0.28979111,600.83,600.12,1.22818455]
[1741169311480,0.94842019,600.82,600.13,0.27935944]
[1741169311685,3.7944228,600.81,600.14,0.27935944]
[1741169311881,1.19093495,600.81,600.15,0.27935944]
[1741169312081,1.19093495,600.81,600.12,1.22818455]
[1741169312082,1.19093495,600.81,600.16,0.27935944]
[1741169312284,1.19093495,600.81,600.13,0.27935944]
[1741169312481,2.13920906,600.8,600.14,0.27935944]
[1741169312682,1.19093495,600.8,600.15,0.27935944]
[1741169312885,1.19093495,600.79,600.12,1.22818455]
[1741169313086,1.19093495,600.79,600.13,0.27942113]
[1741169313687,1.19093495,600.79,599.95,0.27942113]
[1741169313989,1.19093495,600.78,599.96,0.27942113]
[1741169314181,1.48076105,600.78,599.95,0.27942113]
[1741169314381,0.2898261,600.78,599.96,0.27942113]
[1741169314584,2.60412111,600.77,599.95,0.27942113]
[1741169314781,2.60412111,600.76,599.96,0.27942113]
[1741169314984,3.79550788,600.75,599.95,0.27942113]
[1741169315286,2.60412111,600.74,599.96,0.27942113]
[1741169315482,2.60412111,600.73,599.95,0.27942113]
[1741169315685,1.28157928,600.72,600.04,1.22818455]
[1741169315883,0.33293935,600.71,600.05,0.27942113]
[1741169316686,0.94892194,600.7,600.05,0.27942113]
[1741169316889,2.47339974,600.69,600.05,0.27942113]
[1741169317189,0.33295598,600.68,600.05,0.27942113]
[1741169317390,0.33295598,600.68,599.99,0.27942113]
[1741169317590,0.33295598,600.68,600.0,0.27942113]
[1741169317891,0.33295598,600.68,600.01,0.27942113]
[1741169318189,2.14062601,600.67,599.99,0.27942113]
[1741169318388,0.33296706,600.66,600.0,0.27942113]
[1741169318689,0.33296706,600.66,600.01,0.27942113]
[1741169318890,0.33296706,600.66,599.99,0.27942113]
[1741169319093,0.33296706,600.66,600.0,0.27942113]
[1741169319388,0.33296706,600.66,600.01,0.27942113]
[1741169319585,0.33296706,600.66,600.02,0.27942113]
[1741169319990,0.33296706,600.66,600.03,0.27942113]
[1741169320187,0.33296706,600.66,600.04,0.27942113]
[1741169320390,0.33296706,600.66,600.05,0.27942113]
[1741169320391,0.28986835,600.65,600.05,0.27942113]
[1741169320592,0.33297815,600.64,599.89,0.27942113]
[1741169320892,0.33297815,600.64,599.9,0.27942113]
[1741169321091,0.33297815,600.64,599.89,0.27942113]
[1741169321290,0.33297815,600.64,599.9,0.27942113]
[1741169321492,0.33297815,600.64,599.89,0.27942113]
[1741169321688,0.33297815,600.64,599.9,0.27942113]
[1741169321892,0.33297815,600.64,599.89,0.27942113]
[1741169322286,1.19246667,600.63,599.89,0.27942113]
[1741169322488,1.19246667,600.63,599.76,0.27942113]
[1741169322787,1.19246667,600.63,599.77,0.27942113]
[1741169322993,0.33297815,600.64,599.78,0.27942113]
[1741169323191,0.28989974,600.62,599.79,0.27942113]
[1741169323393,0.28989974,600.62,599.8,0.27942113]
[1741169323592,0.28989974,600.62,599.81,0.27942113]
[1741169323793,0.28989974,600.62,599.82,0.27942113]
[1741169323989,0.28989974,600.62,599.87,1.22818455]